Cogmind - Beta 16 @@@ ROGUE MODE // 2026.01.31 @ 16:56:37 Player: ILikeVoltron Result: Self-destructed Performance ------------- Evolutions (4) 2000 Regions Visited (5) 1000 Robots Destroyed (151) 755 Value Destroyed (4555) 4555 Prototype IDs (7) 140 Alien Tech Used (0) 0 Bonus (258) 258 TOTAL SCORE: 8708 Bonus ------- High Alert Combat Kills 258 Cogmind --------- Core Integrity 462/850 Matter 47/300 Energy 150/150 System Corruption 0% Temperature Cool (0) Movement Core (100) Ox1 Location -6/Factory Parts ------- > --- POWER (1) -------- Micro Nuclear Core > --- PROPULSION (5) --- (None) > --- UTILITY (5) ------ (None) > --- WEAPON (4) ------- (None) > --- INVENTORY (5) ---- Compact Matter Pod (0) Weapon Cycler Hardened Heavy Armor Plating Powered Armor Peak State ------------ > --- POWER ------------ Cooled Deuterium Engine > --- PROPULSION ------- Wheel > --- UTILITY ---------- Huge Storage Unit Active Sensor Suite Advanced Targeting Computer > --- WEAPON ----------- Precision Assault Rifle Gauss Cannon Rocket Launcher Heavy Rocket Launcher > --- INVENTORY -------- Light Ion Engine Improved Medium Treads Aluminum Leg Airjet Cooling System Large Storage Unit High-capacity Storage Unit Compact Matter Pod Seismic Detector Matter Filter Kinecellerator Weapon Cycler Advanced ECM Suite Hardened Heavy Armor Plating Hardened Heavy Armor Plating Improved Medium Armor Plating Medium Reactive Plating Powered Armor Powered Armor System Shield System Shield Dynamic Insulation System Improved Trap Extractor [Rating: 60] Favorites ----------- Power Cooled Deuterium Engine Engine Cooled Deuterium Engine Power Core Light Nuclear Core Propulsion Light Treads Treads Light Treads Leg Aluminum Leg Wheel Wheel Flight Unit Biomechanical Wings Utility High-capacity Storage Unit Device Improved Terrain Scanner Storage High-capacity Storage Unit Processor Targeting Computer Protection Hardened Light Armor Plating Weapon Gauss Cannon Energy Gun Small Laser Ballistic Gun Precision Assault Rifle Ballistic Cannon Gauss Cannon Launcher Rocket Launcher Special Weapon Mining Laser Impact Weapon Heavy Hammer Slashing Weapon Greatsword Build | -11 -10 -9 -8 -7 -6 ------- Run | Yrd Mat Mat Mat Fac Fac Slots Evolved 8 | . . 2 2 2 2 Power . | . . . . . . Propulsion 3 | . . 1 2 . . Utility 3 | . . 1 . . 2 Weapon 2 | . . . . 2 . Parts Attached 92 | 2 3 14 38 28 7 Power 11 | . . 1 4 4 2 Engine 7 | . . 1 3 2 1 Core 4 | . . . 1 2 1 Reactor . | . . . . . . Propulsion 33 | . . 3 18 10 2 Treads 21 | . . 3 10 7 1 Leg 10 | . . . 8 2 . Wheel 1 | . . . . 1 . Hover . | . . . . . . Flight 1 | . . . . . 1 Utility 25 | 1 1 7 6 8 2 Device 8 | 1 . 1 4 1 1 Storage 6 | . 1 2 1 2 . Processor 5 | . . 1 1 3 . Hackware . | . . . . . . Protection 6 | . . 3 . 2 1 Artifact . | . . . . . . Weapon 23 | 1 2 3 10 6 1 Energy Gun . | . . . . . . Energy Cannon . | . . . . . . Ballistic Gun 11 | 1 . 1 8 1 . Ballistic Cannon 5 | . 2 1 . 2 . Launcher 2 | . . . . 2 . Special Weapon 1 | . . 1 . . . Impact Weapon 1 | . . . 1 . . Slashing Weapon 3 | . . . 1 1 1 Piercing Weapon . | . . . . . . Special Melee Weapon . | . . . . . . Unidentified Prototypes 7 | . . 1 1 3 2 Parts Lost 48 | . . 3 17 20 8 Power 5 | . . . 2 1 2 Propulsion 24 | . . . 10 13 1 Utility 6 | . . 1 3 2 . Weapon 13 | . . 2 2 4 5 Highest Loss Streak 7 | . . 1 6 4 7 To Critical Strikes 1 | . . . 1 . . Average Backups 17 | 7 8 15 18 18 18 Power . | 1 1 1 . . . Propulsion 2 | 3 2 3 3 . 1 Utility 10 | . 3 5 8 14 15 Weapon 3 | 1 1 4 5 2 . Tool/Special . | . . . . . . Unused Backups 35 | 6 2 4 8 1 14 Power 4 | 1 . 2 . . 1 Propulsion 6 | 3 1 . . . 2 Utility 18 | 1 . 1 5 . 11 Weapon 7 | 1 1 1 3 1 . Tool/Special . | . . . . . . Average Slot Usage (%) 88 | . 99 98 95 84 42 Engine 6 | . 14 11 6 5 4 Core 1 | . . . 1 1 . Treads 23 | . . 30 26 24 . Leg 6 | . 28 1 16 1 . Wheel 1 | . . . . 2 3 Device 4 | . 14 1 6 2 3 Storage 9 | . 14 11 9 8 4 Processor 8 | . . 10 8 8 4 Protection 3 | . . 9 2 1 . Ballistic Gun 6 | . 16 . 9 6 3 Ballistic Cannon 8 | . 10 20 4 7 3 Launcher 2 | . . . . 3 8 Slashing Weapon 3 | . . . 1 6 . Peak Build Rating 60 | 8 10 17 34 50 60 Average Rating 30 | 7 8 15 23 42 41 On Entrance 18 | 6 8 10 17 33 38 Avg Prop Armor Cover (%) 3 | . . . 5 2 . Naked Turns 35 | . . . . . 35 Heaviest Build 123 | 12 22 60 60 123 117 Greatest Support 116 | 20 20 60 102 116 30 Greatest Overweight (x) 12 | . 1 1 2 12 11 Average Overweight (x) 1 | . . . . 2 4 Largest Inventory Capacity 25 | 8 10 20 20 25 25 Average Capacity 19 | 8 9 16 20 22 19 Most Carried 25 | 8 10 20 20 25 25 Average Carried 19 | 7 8 15 19 21 18 Final Capacity 25 | 8 10 20 20 25 5 Final Carried 25 | 8 10 20 20 25 5 Class Distribution -------------------- 37% | Mutant 33% | Scavenger-Mutant 12% | Gunner 8% | Skirmisher 5% | Scavenger-Gunner 3% | Scavenger-Skirmisher Dominant Class ---------------- Mutant | -10/Materials Mutant | -9/Materials Scavenger-Mutant | -8/Materials Scavenger-Mutant | -7/Factory Skirmisher | -6/Factory Resources | -11 -10 -9 -8 -7 -6 ----------- Run | Yrd Mat Mat Mat Fac Fac Matter Collected 3581 | 357 25 718 1368 1071 42 Remotely . | . . . . . . Salvage Created 5161 | 189 42 660 1707 2475 88 Parts 286 | 14 1 45 89 133 4 Haulers Intercepted 8 | . . 2 5 1 . Recyclers Shooed 1 | . . . . 1 . Parts Field Recycled . | . . . . . . Retrieved Matter . | . . . . . . Parts Self-Destructed . | . . . . . . Prevented . | . . . . . . Parts Restored . | . . . . . . Kills | -11 -10 -9 -8 -7 -6 ------- Run | Yrd Mat Mat Mat Fac Fac Combat Hostiles Destroyed 99 | . 1 23 27 46 2 Melee 20 | . . . 2 18 . Guns 31 | . 1 2 20 8 . Cannons 40 | . . 21 4 15 . AOE 7 | . . . . 5 2 Classes Destroyed 17 | 3 1 4 4 5 . Worker 17 | 2 . 3 6 6 . Builder 11 | . . . . 11 . Tunneler 4 | 4 . . . . . Hauler 8 | . . 2 5 1 . Recycler 6 | 1 . . 1 4 . Mechanic 1 | . . . 1 . . Operator 1 | . . . . 1 . Watcher 4 | . . 2 1 1 . Swarmer 16 | . . 8 . 8 . Grunt 56 | . 1 9 22 23 1 Brawler 6 | . . . 2 4 . Duelist 3 | . . . 1 1 1 Protector 1 | . . . . 1 . Sentry 9 | . . 6 1 2 . Hunter 2 | . . . . 2 . Programmer 5 | . . . . 5 . Heavy 1 | . . . 1 . . Best Kill Streak 13 | 3 1 13 7 12 2 Combat Bots Only 11 | . 1 11 6 9 2 Max Kills in Single Turn 4 | 1 1 1 2 4 1 Gunslinging 1 | . . . 1 . . Exploded 3 | . . . . 3 1 Melee 2 | . . . 1 2 . Uniques/NPCs Destroyed . | . . . . . . Combat | -11 -10 -9 -8 -7 -6 -------- Run | Yrd Mat Mat Mat Fac Fac Hostile Shots Fired 797 | . 2 131 217 340 107 Missed 221 | . 1 37 56 92 35 Hits 576 | . 1 94 161 248 72 Melee 18 | . . . 7 11 . Projectile 558 | . 1 94 154 237 72 Critical Strikes 24 | . . 3 9 8 4 Part Disruptions 1 | . . . . 1 . Damage Taken 8695 | . 10 1118 2804 3390 1373 Core 1154 | . . 177 251 338 388 Absorbed by Shields . | . . . . . . Core Remaining (%) 72 | 100 100 55 54 51 . Volleys Fired 250 | 24 4 73 93 53 3 Largest 4 | 2 2 2 2 4 3 Hottest 147 | 60 66 66 66 147 107 Shots Fired 573 | 48 8 145 182 181 9 Gun 280 | 48 6 4 141 78 3 Cannon 281 | . 2 141 41 94 3 Launcher 12 | . . . . 9 3 Special . | . . . . . . Kinetic 559 | 46 8 145 182 172 6 Thermal 2 | 2 . . . . . Explosive 12 | . . . . 9 3 Electromagnetic . | . . . . . . Robot Hit Streak 15 | 9 4 8 15 9 2 Robot Miss Streak 5 | 3 2 5 3 3 2 Penetration Max 1 | . . . 1 1 . Secondary Targets 7 | . . . 7 . . Max Gunslinging Chain 1 | . . . 1 . . Shots Hit Robots 413 | 34 4 83 142 144 6 Core Hits 215 | 11 3 35 63 92 11 Critical Kills 4 | . 1 . 3 . . Critical Parts Destroyed 7 | . . . 6 1 . Critical Strikes 38 | . 2 2 11 22 1 Destroy 9 | . 1 . 7 1 . Blast 8 | . 1 2 2 3 . Smash 2 | . . . 2 . . Sever 19 | . . . . 18 1 Melee Attacks 122 | . . . 23 98 1 Impact 14 | . . . 14 . . Slashing 108 | . . . 9 98 1 Piercing . | . . . . . . Sneak Attacks 18 | . . . 7 11 . Combat Hostiles . | . . . . . . Follow-up Attacks 11 | . . . . 11 . Damage Inflicted 13438 | 326 51 1713 3594 7047 707 Guns 3318 | 326 32 57 1994 888 21 Cannons 3884 | . 19 1656 600 1580 29 Explosions 1575 | . . . . 959 616 Melee 4625 | . . . 1000 3605 20 Ramming 36 | . . . . 15 21 Kinetic 7190 | 314 51 1713 2594 2468 50 Thermal 12 | 12 . . . . . Explosive 1548 | . . . . 932 616 Electromagnetic 27 | . . . . 27 . Impact 561 | . . . 561 . . Slashing 4064 | . . . 439 3605 20 Piercing . | . . . . . . Highest Corruption 16 | . . . 6 16 . Average Corruption 9 | . . . 5 10 . Corruption Purged . | . . . . . . Corruption Blocked . | . . . . . . Effects 129 | . . . 38 91 . Message Errors 31 | . . . 9 22 . Matter Fused 23 | . . . 6 17 . Heat Flow Errors 13 | . . . 5 8 . Energy Discharges 20 | . . . 6 14 . Parts Rejected 2 | . . . 2 . . Parts Fused 1 | . . . 1 . . Data Loss (minor) 13 | . . . 3 10 . Data Loss (major) 6 | . . . 3 3 . Misfires 6 | . . . . 6 . Alerts 5 | . . . . 5 . Weapon Failures 9 | . . . 3 6 . Overload Shots . | . . . . . . Overflow Damage 860 | . . 5 419 436 . Projectiles 56 | . . 5 2 49 . Explosions 21 | . . . . 21 . Melee 783 | . . . 417 366 . Knockbacks 37 | . 1 10 10 16 . Impact 3 | . . . 3 . . Kinetic 31 | . 1 9 7 14 . Secondary 3 | . . 1 . 2 . Self-Inflicted Damage 144 | . . . . 134 10 Shots 3 | . . . . 3 . Rammed 6 | . . . . 2 4 Targets Rammed 6 | . . . . 2 4 Kicked . | . . . . . . Crushed . | . . . . . . Highest Temperature 327 | 20 6 172 246 327 28 Average Temperature 71 | 15 4 57 45 100 14 Received Heat Transfer 3300 | . 6 492 1377 834 591 Effects 1 | . . . . 1 . Short Circuit 1 | . . . . 1 . Siege Activations . | . . . . . . Martial Activations . | . . . . . . Shielding Activations . | . . . . . . Robots Disrupted . | . . . . . . Combat Hostiles . | . . . . . . Robots Corrupted 3 | . . . 3 . . Combat Hostiles 1 | . . . 1 . . Parts Fried 4 | . . . 4 . . Impact Corruptions 8 | . . . 8 . . Robots Melted . | . . . . . . Combat Hostiles . | . . . . . . Parts Melted . | . . . . . . Heat Transferred 25 | 25 . . . . . Parts Sabotaged . | . . . . . . Parts Stolen . | . . . . . . Parts Stripped . | . . . . . . Power Chain Reactions . | . . . . . . Alert | -11 -10 -9 -8 -7 -6 ------- Run | Yrd Mat Mat Mat Fac Fac Maximum Alert Level 3 | . . 1 1 3 1 Low Security (%) 47 | 100 100 38 81 29 . Level 1 32 | . . 61 18 28 100 Level 2 9 | . . . . 19 . Level 3 10 | . . . . 22 . Level 4 . | . . . . . . Level 5 . | . . . . . . High Security . | . . . . . . Max Security . | . . . . . . Peak Influence 808 | 10 20 372 351 808 395 Initial 395 | . . . 128 153 395 Average 267 | 2 1 227 111 400 348 Influence Increases 3282 | 35 20 715 826 1543 143 Destroy 0b10 Robot/C 1960 | . 20 460 540 900 40 Destroy 0b10 Robot/NC 265 | 35 . 35 70 125 . Destroy Leader 434 | . . 118 122 184 10 Successful Hack 24 | . . . 24 . . Disable Machine 165 | . . 30 . 135 . Destroy Structure 134 | . . 12 10 94 18 Lose Combat Pursuer 300 | . . 60 60 105 75 Influence Decreases 2934 | 35 20 410 793 1073 603 Entered New Map 775 | . . . 177 185 413 Time Decay 1749 | 35 20 390 506 688 110 Lost Part 410 | . . 20 110 200 80 Squads Dispatched 17 | . . 1 5 11 . Investigation . | . . . . . . Extermination 5 | . . . . 5 . Reinforcement 8 | . . 1 2 5 . Assault 1 | . . . . 1 . Garrison 3 | . . . 3 . . Intercept . | . . . . . . Searches Triggered . | . . . . . . Construction Impeded 3 | . . . . 3 . Haulers Reinforced 1 | . . . . 1 . Active Scanning Responses . | . . . . . . Cargo Convoy Interrupts . | . . . . . . Stealth | -11 -10 -9 -8 -7 -6 --------- Run | Yrd Mat Mat Mat Fac Fac Distress Signals 11 | . . 4 4 2 1 Communications Jammed . | . . . . . . Distress Signals . | . . . . . . Times Spotted 164 | . 3 32 51 62 16 Peak Tracking Total 9 | . 2 6 4 9 8 Tactical Retreats 18 | . . 2 8 7 1 ECM-based Alert Blocks 8 | . . . 8 . . Traps | -11 -10 -9 -8 -7 -6 ------- Run | Yrd Mat Mat Mat Fac Fac Traps Triggered 4 | . . . . 4 . Indirectly 2 | . . . . 2 . Trap Hack Attempts . | . . . . . . Triggered . | . . . . . . Disarmed . | . . . . . . Reprogrammed . | . . . . . . Reused . | . . . . . . Traps Extracted . | . . . . . . Installed . | . . . . . . Triggered . | . . . . . . Machines | -11 -10 -9 -8 -7 -6 ---------- Run | Yrd Mat Mat Mat Fac Fac Machines Disabled 11 | . . 2 . 9 . Max in Single Turn 2 | . . 1 . 2 . Machines Repaired . | . . . . . . Machines Dismantled . | . . . . . . Machines Sabotaged . | . . . . . . Overloaded Fab Kills . | . . . . . . Hacking | -11 -10 -9 -8 -7 -6 --------- Run | Yrd Mat Mat Mat Fac Fac Machines Accessed 16 | . 3 2 8 3 . Terminals 14 | . 3 1 7 3 . Fabricators . | . . . . . . Repair Stations . | . . . . . . Recycling Units 1 | . . . 1 . . Scanalyzers 1 | . . 1 . . . Garrison Access . | . . . . . . Total Hacks 28 | . 3 6 16 3 . Successful 8 | . 1 2 5 . . Failed 20 | . 2 4 11 3 . Catastrophic 8 | . 1 . 4 3 . Database Lockouts . | . . . . . . Manual 4 | . . . 4 . . Terminals 25 | . 3 4 15 3 . Fabricators . | . . . . . . Repair Stations . | . . . . . . Recycling Units 1 | . . . 1 . . Scanalyzers 2 | . . 2 . . . Garrison Access . | . . . . . . Terminal Hacks 5 | . 1 . 4 . . Record 1 | . . . 1 . . Branch Access Points 1 | . . . 1 . . Emergency Access Points 1 | . . . 1 . . Terminal Index 2 | . 1 . 1 . . Fabricator Hacks . | . . . . . . Repair Station Hacks . | . . . . . . Recycling Unit Hacks 1 | . . . 1 . . Report Inventory 1 | . . . 1 . . Scanalyzer 2 | . . 2 . . . Retrieve Study 2 | . . 2 . . . Garrison Access Hacks . | . . . . . . Unauthorized Hacks . | . . . . . . Terminals . | . . . . . . Fabricators . | . . . . . . Repair Stations . | . . . . . . Recycling Units . | . . . . . . Scanalyzers . | . . . . . . Garrison Access . | . . . . . . Data Cores Recovered . | . . . . . . Used . | . . . . . . Hacking Detections 15 | . 3 2 7 3 . Full Trace Events 1 | . . . 1 . . Feedback Events . | . . . . . . Feedback Blocked . | . . . . . . Robot Schematics Acquired . | . . . . . . Robots Built . | . . . . . . Authchips . | . . . . . . Time . | . . . . . . Total Robot Build Rating . | . . . . . . Part Schematics Acquired . | . . . . . . Parts Built . | . . . . . . Authchips . | . . . . . . Time . | . . . . . . Total Part Build Rating . | . . . . . . Part Studies Acquired 2 | . . 2 . . . Parts Repaired . | . . . . . . Time . | . . . . . . Parts Recycled . | . . . . . . Recycled Matter . | . . . . . . Retrieved Matter . | . . . . . . Retrieved Components . | . . . . . . Parts Scanalyzed . | . . . . . . Part Schematics Acquired . | . . . . . . Parts Damaged . | . . . . . . Bothacking | -11 -10 -9 -8 -7 -6 ------------ Run | Yrd Mat Mat Mat Fac Fac Used RIF Installer . | . . . . . . Robots Hacked . | . . . . . . Non-combat . | . . . . . . Combat . | . . . . . . Robot Hacks Applied . | . . . . . . Relay Couplers Released . | . . . . . . Fabnet Peak Effective % . | . . . . . . Robots Rewired . | . . . . . . Allies Hacked . | . . . . . . Hacks Repelled . | . . . . . . Allies | -11 -10 -9 -8 -7 -6 -------- Run | Yrd Mat Mat Mat Fac Fac Total Allies . | . . . . . . Largest Group . | . . . . . . Highest-Rated Group . | . . . . . . Highest-Rated Ally . | . . . . . . Total Orders . | . . . . . . Ally Attacks . | . . . . . . Total Damage . | . . . . . . Kills . | . . . . . . Allies Corrupted . | . . . . . . Allies Melted . | . . . . . . Intel | -11 -10 -9 -8 -7 -6 ------- Run | Yrd Mat Mat Mat Fac Fac Active Infowar (turns) 2066 | 51 283 47 426 1109 150 A.S.S. 150 | . . . . . 150 Terrain 658 | . . . 21 637 . Seismic 556 | 51 283 47 175 . . Machine Analysis 472 | . . . . 472 . ECM 230 | . . . 230 . . Robot Analysis Total . | . . . . . . Derelict Logs Recovered . | . . . . . . Drone Launches . | . . . . . . Drone Recoveries . | . . . . . . Exploration | -11 -10 -9 -8 -7 -6 ------------- Run | Yrd Mat Mat Mat Fac Fac Turns Passed 5914 | 147 283 987 1492 2772 233 Spaces Moved 2560 | 47 171 443 708 1057 134 Core 76 | . . . . . 76 Treads 1666 | . . 412 418 830 6 Legs 539 | 47 171 31 290 . . Wheels 279 | . . . . 227 52 Hover . | . . . . . . Flight . | . . . . . . Fastest Speed 50 | 120 120 120 108 161 50 Average Speed 171 | 120 143 158 142 205 150 Slowest Speed 480 | 120 190 190 245 480 400 Overloaded Moves . | . . . . . . Propulsion Burnouts . | . . . . . . Robots Hopped . | . . . . . . Potential Cave-ins . | . . . . . . Cave-ins Triggered . | . . . . . . Exploration Rate (%) 27 | 2 34 35 56 36 2 Regions Visited 5 Branch Regions . Pre-discovered Areas . | . . . . . . Known Exits Taken . | . . . . . . Unknown Exits Taken 5 | 1 1 1 1 1 . Scrap Searched . | . . . . . . Spaces Dug 34 | . . . 9 25 . Terrain Destroyed 149 | . . 7 9 116 17 Melee 26 | . . . 9 17 . Projectile 56 | . . 7 . 47 2 AOE 67 | . . . . 52 15 Terrain Rammed . | . . . . . . Walls Destroyed . | . . . . . . Machines Disabled . | . . . . . . Actions | -11 -10 -9 -8 -7 -6 --------- Run | Yrd Mat Mat Mat Fac Fac Total 3374 | 94 203 582 979 1361 155 Wait 205 | 18 17 21 42 107 . Move 2555 | 46 170 442 707 1056 134 Hop . | . . . . . . Pick Up 83 | 3 4 20 33 20 3 Fast Attach 29 | 1 2 1 9 12 4 Attach 37 | . . 4 19 11 3 Detach 7 | . . . 3 3 1 Swap 46 | 1 1 12 21 11 . Drop 53 | 1 5 9 29 7 2 Fire 250 | 24 4 73 93 53 3 Melee 103 | . . . 23 79 1 Ram 4 | . . . . . 4 Kick . | . . . . . . Crush 2 | . . . . 2 . Escape Stasis . | . . . . . . Rewire . | . . . . . . Trap . | . . . . . . Miscellaneous . | . . . . . . Route ------- -11/Scrapyard -10/Materials -9/Materials (discovered 2 exits: *Mat / [*Min]) -8/Materials (discovered 3 exits: *Fac / Sto x2) -7/Factory -6/Factory History --------- Turn | Location | Event 14 | -11/Scrapyard | Discovered new exit (range 3) 148 | -11/Scrapyard | Entered Materials 341 | -10/Materials | Build established: Mutant 404 | -10/Materials | Discovered new exit (range 8) 431 | -10/Materials | Entered another Materials area 431 | -9/Materials | Evolved 2 slots: Propulsion x1, Utility x1 890 | -9/Materials | Destroyed 11 combat bots 1056 | -9/Materials | Discovered new exit (range 16) 1402 | -9/Materials | Discovered new exit (range 11) 1418 | -9/Materials | Entered another Materials area 1418 | -8/Materials | Evolved 2 slots: Propulsion x2 1646 | -8/Materials | Lost 3 parts (1p2n) 1849 | -8/Materials | Lost 3 parts (1n1u1w) 2310 | -8/Materials | Identified exit to Storage 2366 | -8/Materials | Garrison activated, responded to threat 2404 | -8/Materials | Found Prototype Device 2406 | -8/Materials | Lost 6 parts (1p4n1u) 2721 | -8/Materials | Build established: Scavenger-Mutant 2885 | -8/Materials | Discovered new exit (range 16) 2910 | -8/Materials | Entered Factory 2910 | -7/Factory | Evolved 2 slots: Weapon x2 4176 | -7/Factory | Lost 3 parts (2n1w) 4489 | -7/Factory | System corruption reached 10% 4541 | -7/Factory | Destroyed 9 combat bots 4548 | -7/Factory | Build established: Skirmisher 4910 | -7/Factory | First assault squad dispatched 5011 | -7/Factory | Build established: Scavenger-Gunner 5085 | -7/Factory | Lost 4 parts (2n2w) 5328 | -7/Factory | Build established: Gunner 5573 | -7/Factory | Found Powered Armor 5584 | -7/Factory | Found Powered Armor 5640 | -7/Factory | Discovered new exit (range 16) 5682 | -7/Factory | Entered another Factory area 5682 | -6/Factory | Evolved 2 slots: Utility x2 5683 | -6/Factory | Identified Active Sensor Suite 5852 | -6/Factory | Released all parts (4) 5879 | -6/Factory | Lost 7 parts (2p1n4w) 5915 | -6/Factory | Self-destructed Last Messages --------------- 05847_ Acquired Imp. Deuterium Engine. 05848_ Acquired 42 matter. 05848_ Imp. Deuterium Engine destroyed. 05852_ Released Huge Storage Unit. 05852_ Released Adv. Targeting Computer. 05852_ Released Imp. Medium Treads. 05852_ Released Hrd. Heavy Armor Plating. 05854_ Manufacturing Mainframe disabled. 05870_ Slammed into G-50 Soldier. 05871_ Slammed into G-67 Veteran. 05872_ Slammed into G-50 Soldier. 05882_ Slammed into W-25 Informer. 05887_ Acquired Carbide Saw. 05889_ Acquired Mic. Nuclear Core. 05900_ Acquired Prototype Flight Unit. 05900_ Identified Biomechanical Wings. 05900_ Faulty integration damages Faulty Biomechanical Wings (-10). 05901_ Dropped Faulty Biomechanical Wings. 05911_ G-50 Soldier Carbon-fiber Leg severed. 05913_ Carbide Saw destroyed. Map ----- +----------------------------------------------------+ | ?????????????????????????????????????????????????? | | ?????????????????????????????????????????????????? | | ?????????????????????????????????????????????????? | | ?????????????????????????????????????????????????? | | ?????????????????????????????????????????????????? | | ?????????????????????????????????????????????????? | | ?????????????????????????????????????????????????? | | ?????????????????????????????????????????????????? | | ?????????????????????????????????????????????????? | | ?????????????????????????????????????????????????? | | ?????????????????????????????????????????????????? | | ?????????????????????????????????????????????????? | | ???????????????????????????# ???????????????????? | | ??????????????????????????? ?????????????????? | | ??????????????????????????? ?????????????????? | | ??????????????????????????? ?????????????????? | | ??????????????????????????? ??????????????????? | | ??????????????????????????? ??????????????????? | | ??????????????????????????# ??????????????????? | | ???????????????????######## #??????????????????? | | ???????????????????# # #?##############???? | | ???????????????????# """ # #?# #???? | | ???????????????????# """ # #?# #???? | | ???????????????????# """ # #?# """" """" #???? | | ???????????????????# # #?# """" """" #???? | | ???????????????????# @# #?# """" """" #???? | | ???????????????????# ! + #?# """ """" #???? | | ???????????????????# *! #= #?# #???? | | ???????????????????# !/ # #?# #???? | | ???????????????????# # #?# #???? | | ???????????????????# ! # #?# ##### | | ???????????????????# # #?# """ """ # # | | ???????????????????#= # #?# """S""" # | | ???????????????????######## ####### # ==! | | ??????????????????????????# !== !!!!! | | ??????????????????????????# = !!!!! | | ????????????????????? == !!!! | | ????????????????????####### !*= | | ??????????????????????????####"" = | | ?????????????????????????????### "" == ### | | ???????????????????????????????# ^ "" == #?### | | ?????????????????????????????? ^^ """ #????# | | ????????????????????????????? """ #????? | | ???????????????????????????? """ #????? | | ??????????????????????????? #????? | | ??????????????????????????? ! #????? | | ???????????????????????????+#################????? | | ?????????????????????????????????????????????????? | | ?????????????????????????????????????????????????? | | ?????????????????????????????????????????????????? | +----------------------------------------------------+ Best States ------------- Heat Dissipation 56 Energy Generation 18 Energy Capacity 310 Matter Stores 390 Matter Capacity 400 Sight Range 16 Robot Scan Range 20 Terrain Scan Range 16 Terrain Scan Density 110 ECM Strength 1 Armor Coverage 600 Weapon Cycling 15 Evasion (%) 55 Targeting Accuracy 8 Recoil Reduction 5 Item Schematics ----------------- None Robot Schematics ------------------ None Fabricated ------------ Nothing Repaired ---------- Nothing Studied --------- Aluminum Leg | -9/Materials | Hacked Hvy. Hammer | -9/Materials | Hacked Alien Tech Used ----------------- None Achievements -------------- Construction Begets Destruction Challenges ------------ None Game ------ Seed ProjectilePiercingTube Manual? 0 Play Time 01:23:02 Cumulative 186.1 hours Start 2026.01.31 @ 12:11:19 End 2026.01.31 @ 16:56:37 Sessions 5 Manual Loads 0 Difficulty Rogue Special Mode None Game No. 308 Rogue 304 Adventurer 0 Explorer 4 Win Type - Total 0 Types 0/0/0/0/0/0/0/0/0/0 Lore% 27 Gallery% 44 Achievement% 30 Wizard Run 0 Options --------- Layout 0 ASCII 0 Keyboard 1 Movement Arrows Keybinds 0 Fullscreen 1 Font 24/Smallcaps Map View 183x50 Zoom Use 0% Tactical HUD 1 Map Filters NONE Filters NONE Steam 1 RUN: 2980b399-ab9b-4092-96b0-0cd131b2101b